bitfinex/quotes_BTCUSD_20250618
["timestamp","ask_amount","ask_price","bid_price","bid_amount"]
[1750211880248,0.21613444,104920.0,104910.0,0.11226078]
[1750211880682,0.21613444,104920.0,104910.0,0.08885197]
[1750211880903,4.736e-05,104920.0,104910.0,0.08132]
[1750211881122,0.21622407,104920.0,104910.0,0.08132]
[1750211881783,4.736e-05,104920.0,104910.0,0.28249147]
[1750211882034,4.736e-05,104920.0,104910.0,0.29202326]
[1750211882446,4.736e-05,104920.0,104910.0,0.37873323]
[1750211882672,4.736e-05,104920.0,104910.0,0.18809373]
[1750211883103,4.736e-05,104920.0,104910.0,0.17856176]
[1750211883339,0.21622407,104920.0,104910.0,0.17856176]
[1750211884095,0.21622407,104920.0,104910.0,0.18809373]
[1750211884298,0.21622407,104920.0,104910.0,0.37873332]
[1750211884512,0.21622407,104920.0,104910.0,0.3882652]
[1750211884734,0.21622407,104920.0,104910.0,0.37873332]
[1750211884944,0.21622407,104920.0,104910.0,0.38826511]
[1750211885152,0.21622407,104920.0,104910.0,0.18809373]
[1750211885566,4.736e-05,104920.0,104910.0,0.18809373]
[1750211886396,4.736e-05,104920.0,104910.0,0.19762561]
[1750211886601,4.736e-05,104920.0,104910.0,0.2071574]
[1750211886810,4.736e-05,104920.0,104910.0,0.39779699]
[1750211887020,4.736e-05,104920.0,104910.0,0.4168603]
[1750211887292,4.736e-05,104920.0,104910.0,0.40732869]
[1750211887711,4.736e-05,104920.0,104910.0,0.39779699]
[1750211888155,4.736e-05,104920.0,104910.0,0.3882652]
[1750211888377,4.736e-05,104920.0,104910.0,0.39779699]
[1750211889223,4.736e-05,104920.0,104910.0,0.3882652]
[1750211890085,0.21622407,104920.0,104910.0,0.17856176]
[1750211890727,0.21622407,104920.0,104910.0,0.18809373]
[1750211890955,0.21622407,104920.0,104910.0,0.19762561]
[1750211891380,0.21622407,104920.0,104910.0,0.3882652]
[1750211891600,4.736e-05,104920.0,104910.0,0.45854874]
[1750211891829,4.736e-05,104920.0,104910.0,0.46808008]
[1750211892074,4.736e-05,104920.0,104910.0,0.62400008]
[1750211892778,4.736e-05,104920.0,104910.0,0.56324815]
[1750211893960,4.736e-05,104920.0,104910.0,0.85567706]
[1750211894199,4.736e-05,104920.0,104910.0,1.42639462]
[1750211894440,0.028653,104950.0,104940.0,0.47224846]
[1750211894663,0.36415403,104980.0,104960.0,0.20007612]
[1750211894664,0.24415403,104980.0,104960.0,0.20007612]
[1750211894932,0.40964625,104980.0,104950.0,0.26556255]
[1750211895158,0.21617671,104970.0,104960.0,0.21912936]
[1750211895386,0.21617671,104970.0,104960.0,0.20960229]
[1750211895625,0.58771826,104970.0,104960.0,0.20960238]
[1750211896107,0.58771826,104970.0,104960.0,0.00952743]
[1750211896330,0.58771826,104970.0,104950.0,0.34274826]
[1750211896331,0.58771826,104970.0,104950.0,0.33322101]
[1750211896556,0.58771826,104970.0,104960.0,0.001]
[1750211897489,0.58771826,104970.0,104950.0,0.3713323]
[1750211897705,0.66589691,104970.0,104950.0,0.37133166]
[1750211897918,0.66589691,104970.0,104950.0,0.37233166]
[1750211898126,0.66589691,104970.0,104950.0,0.36280414]
[1750211898551,0.66589691,104970.0,104950.0,0.37233166]
[1750211899000,0.66589691,104970.0,104960.0,0.00952743]
[1750211899221,0.66589691,104970.0,104950.0,0.36280377]
[1750211899435,0.66589691,104970.0,104950.0,0.33322119]
[1750211899656,0.66589691,104970.0,104960.0,0.001]
[1750211900389,0.58771826,104970.0,104960.0,0.001]
[1750211901236,0.58771826,104970.0,104960.0,0.002]
[1750211908589,0.59724397,104970.0,104960.0,0.002]
[1750211910043,0.58771826,104970.0,104960.0,0.002]
[1750211912804,0.37154155,104970.0,104960.0,0.002]
[1750211913081,0.58771826,104970.0,104960.0,0.002]
[1750211915221,0.59724406,104970.0,104960.0,0.002]
[1750211915439,0.6763674,104970.0,104960.0,0.002]
[1750211915695,1.05042988,104970.0,104960.0,0.002]
[1750211915914,1.06862988,104970.0,104960.0,0.002]
[1750211916345,1.05910408,104970.0,104960.0,0.002]
[1750211917672,0.86857336,104970.0,104960.0,0.002]
[1750211918332,0.87809989,104970.0,104960.0,0.002]
[1750211918980,0.86857336,104970.0,104960.0,0.002]
[1750211919649,0.96472258,104970.0,104960.0,0.002]
[1750211919863,0.97424911,104970.0,104960.0,0.002]
[1750211920074,0.63424911,104970.0,104960.0,0.002]
[1750211920716,0.62472258,104970.0,104960.0,0.002]
[1750211921450,0.61519624,104970.0,104960.0,0.002]
[1750211921660,0.48294684,104970.0,104960.0,0.002]
[1750211922320,0.03154155,104970.0,104960.0,0.0386]
[1750211922525,0.58771826,104970.0,104960.0,0.0386]
[1750211922732,0.55617671,104970.0,104960.0,0.0386]
[1750211923362,0.59227369,104970.0,104960.0,0.0386]
[1750211924234,0.60179949,104970.0,104960.0,0.0386]
[1750211924453,0.68137825,104970.0,104960.0,0.0386]
[1750211924680,0.90708094,104970.0,104960.0,0.002]
[1750211924898,0.9166071,104970.0,104960.0,0.002]
[1750211925117,0.90708094,104970.0,104960.0,0.002]
[1750211925535,0.9166071,104970.0,104960.0,0.002]
[1750211926455,0.939405,104970.0,104960.0,0.002]
[1750211926687,0.98673134,104970.0,104960.0,0.002]
[1750211926904,0.98673207,104970.0,104960.0,0.002]
[1750211927135,1.01344562,104970.0,104960.0,0.002]
[1750211927357,1.20397624,104970.0,104960.0,0.002]
[1750211927594,6.03503524,104970.0,104960.0,0.002]
[1750211927819,5.84450462,104970.0,104960.0,0.002]
[1750211928030,6.03503271,104970.0,104960.0,0.002]
[1750211928682,6.03503272,104970.0,104960.0,0.002]
[1750211929107,6.03503148,104970.0,104960.0,0.002]
[1750211930013,6.0255055,104970.0,104960.0,0.002]
[1750211931506,6.02550485,104970.0,104960.0,0.002]
[1750211931929,6.02550353,104970.0,104960.0,0.002]
[1750211933025,6.01597737,104970.0,104960.0,0.002]
[1750211934121,6.25849279,104970.0,104960.0,0.002]
[1750211934335,6.43694983,104970.0,104960.0,0.002]
[1750211934979,6.43694343,104970.0,104960.0,0.001]
[1750211935421,6.43794343,104970.0,104960.0,0.001]
[1750211936061,0.00952752,104950.0,104940.0,0.07764]
[1750211936312,0.21617671,104950.0,104940.0,0.07764]
[1750211937616,0.21617671,104950.0,104940.0,0.08064]
[1750211938055,0.21617671,104950.0,104940.0,0.08264]
[1750211943528,0.55668907,104960.0,104940.0,0.08264]
[1750211943762,0.21617671,104950.0,104940.0,0.08264]
[1750211944464,0.21617671,104950.0,104940.0,0.08064]
[1750211944843,0.21617671,104950.0,104940.0,0.08164]
[1750211945254,0.21617671,104950.0,104940.0,0.08064]
[1750211945667,0.21617671,104950.0,104940.0,0.08264]
[1750211946346,0.21617671,104950.0,104940.0,0.32151572]
[1750211946557,0.21617671,104950.0,104940.0,0.33104488]
[1750211946784,0.21617671,104950.0,104940.0,0.12140138]
[1750211946989,0.21617671,104950.0,104940.0,0.13093063]
[1750211947853,0.21617671,104950.0,104940.0,0.12140138]
[1750211948474,0.21617671,104950.0,104940.0,0.13093063]
[1750211948683,0.21617671,104950.0,104940.0,0.12140138]
[1750211948896,0.21617671,104950.0,104940.0,0.13093063]
[1750211949112,0.21617671,104950.0,104940.0,0.08264]
[1750211951630,0.22570423,104950.0,104940.0,0.08264]
[1750211951879,0.23523185,104950.0,104940.0,0.08264]
[1750211952092,0.21617671,104950.0,104940.0,0.08264]
[1750211954258,0.22570423,104950.0,104940.0,0.08264]
[1750211956629,0.23523194,104950.0,104940.0,0.08264]
[1750211956843,0.22570423,104950.0,104940.0,0.08264]
[1750211957988,0.32185345,104950.0,104940.0,0.08264]
[1750211958200,0.34090914,104950.0,104940.0,0.08264]
[1750211958423,0.33138116,104950.0,104940.0,0.08264]
[1750211959360,0.34090905,104950.0,104940.0,0.08264]
[1750211959580,0.34090896,104950.0,104940.0,0.08264]
[1750211960253,0.35043694,104950.0,104940.0,0.08264]
[1750211960461,0.34090896,104950.0,104940.0,0.0422]
[1750211960686,0.37324867,104950.0,104940.0,0.005]
[1750211960891,0.38277692,104950.0,104940.0,0.005]
[1750211962149,0.38277692,104950.0,104940.0,0.023]
[1750211962789,0.3732494,104950.0,104940.0,0.005]
[1750211962998,0.91334467,104950.0,104940.0,0.005]
[1750211963208,0.90381696,104950.0,104940.0,0.005]
[1750211963629,0.90381696,104950.0,104940.0,0.003]
[1750211964066,0.71325003,104950.0,104940.0,0.004]
[1750211964285,0.71325003,104950.0,104940.0,0.001]
[1750211965759,0.71325003,104950.0,104940.0,0.002]
[1750211966433,0.71325003,104950.0,104940.0,0.0194]
[1750211967119,0.90381696,104950.0,104940.0,0.002]
[1750211967990,0.71325003,104950.0,104940.0,0.0196]
[1750211970853,0.88476109,104950.0,104940.0,0.002]
[1750211971295,0.87523284,104950.0,104940.0,0.002]
[1750211973676,5.70629184,104950.0,104940.0,0.002]
[1750211976565,5.71581991,104950.0,104940.0,0.002]
[1750211977655,6.32823838,104950.0,104940.0,0.002]
[1750211977864,6.36283838,104950.0,104940.0,0.002]
[1750211978071,6.39149138,104950.0,104940.0,0.002]
[1750211978684,6.17531467,104950.0,104940.0,0.002]
[1750211979528,6.14071467,104950.0,104940.0,0.002]
[1750211981261,6.04456545,104950.0,104940.0,0.002]
[1750211983665,6.20028545,104950.0,104940.0,0.002]
[1750211983894,6.22876166,104950.0,104940.0,0.002]
[1750211986153,6.21923359,104950.0,104940.0,0.002]
[1750211986348,6.31973359,104950.0,104940.0,0.002]
[1750211986577,6.31538281,104950.0,104940.0,0.002]
[1750211987919,6.31538281,104950.0,104940.0,0.00116]
[1750211989615,6.21923359,104950.0,104940.0,0.00116]
[1750211990650,5.57294639,104950.0,104940.0,0.01866]
[1750211990860,5.65143977,104950.0,104940.0,0.03606]
[1750211991290,5.62296356,104950.0,104940.0,0.03606]
[1750211991544,5.66096793,104950.0,104940.0,0.03606]
[1750211991957,5.74758899,104950.0,104940.0,0.03606]
[1750211992170,5.75711715,104950.0,104940.0,0.03606]
[1750211993161,5.74758899,104950.0,104940.0,0.03606]
[1750211993377,5.75711706,104950.0,104940.0,0.03606]
[1750211993635,5.59190899,104950.0,104940.0,0.03606]
[1750211993772,5.58249172,104950.0,104940.0,0.03606]
[1750211995894,5.57296356,104950.0,104940.0,0.03606]
[1750211996310,5.58249163,104950.0,104940.0,0.03606]
[1750211997807,5.54438035,104950.0,104940.0,0.03606]
[1750211998043,0.34146464,104950.0,104940.0,0.03606]
[1750211998602,0.31281164,104950.0,104940.0,0.27653425]
[1750211998804,0.31281164,104950.0,104940.0,0.28606332]
[1750211999015,0.37185671,104960.0,104950.0,0.036]
[1750211999633,0.71185671,104960.0,104950.0,0.036]
[1750212000261,0.55617671,104960.0,104950.0,0.036]
[1750212000485,0.49568,104960.0,104950.0,0.036]
[1750212000705,0.71185671,104960.0,104950.0,0.036]
[1750212001131,0.71285671,104960.0,104950.0,0.036]
[1750212001548,0.72238333,104960.0,104950.0,0.036]
[1750212002170,0.72338333,104960.0,104950.0,0.036]
[1750212002595,0.73291004,104960.0,104950.0,0.036]
[1750212002848,0.64146394,104960.0,104950.0,0.036]
[1750212003102,0.84811331,104960.0,104950.0,0.036]
[1750212003297,0.75196409,104960.0,104950.0,0.036]
[1750212003950,0.74243702,104960.0,104950.0,0.036]
[1750212004180,0.56770333,104960.0,104950.0,0.036]
[1750212004390,0.71381671,104960.0,104950.0,0.036]
[1750212004598,0.73287049,104960.0,104950.0,0.036]
[1750212005290,0.7328704,104960.0,104950.0,0.036]
[1750212005694,0.74239756,104960.0,104950.0,0.036]
[1750212006760,0.83854678,104960.0,104950.0,0.036]
[1750212007166,0.82901962,104960.0,104950.0,0.036]
[1750212007387,0.83854669,104960.0,104950.0,0.036]
[1750212008131,0.51669369,104960.0,104950.0,0.036]
[1750212008345,0.7328704,104960.0,104950.0,0.036]
[1750212008566,0.74239756,104960.0,104950.0,0.036]
[1750212009014,0.73287031,104960.0,104950.0,0.036]
[1750212010306,0.73287022,104960.0,104950.0,0.036]
[1750212010511,0.72330333,104960.0,104950.0,0.036]
[1750212010734,0.73283013,104960.0,104950.0,0.036]
[1750212010945,0.72330333,104960.0,104950.0,0.036]
[1750212013919,0.71377671,104960.0,104950.0,0.036]
[1750212014121,0.21817671,104960.0,104950.0,0.036]
[1750212014344,0.21817671,104960.0,104950.0,0.06650612]
[1750212014751,0.21817671,104960.0,104950.0,0.036]
[1750212014985,0.21801649,104960.0,104950.0,0.036]
[1750212017731,0.43403298,104960.0,104950.0,0.036]
[1750212018579,0.4435596,104960.0,104950.0,0.036]
[1750212018828,0.43403298,104960.0,104950.0,0.036]
[1750212019919,0.44355969,104960.0,104950.0,0.036]
[1750212020904,0.43403298,104960.0,104950.0,0.036]
[1750212021069,0.002,104960.0,104950.0,0.036]
[1750212021278,0.43403298,104960.0,104950.0,0.036]
[1750212022581,0.4435596,104960.0,104950.0,0.036]
[1750212023131,0.4530864,104960.0,104950.0,0.036]
[1750212023362,0.5301977,104960.0,104950.0,0.036]
[1750212023572,0.5397245,104960.0,104950.0,0.036]
[1750212024214,0.5301977,104960.0,104950.0,0.036]
[1750212024427,0.4435596,104960.0,104950.0,0.036]
[1750212024647,0.43403298,104960.0,104950.0,0.036]
[1750212025075,0.4435596,104960.0,104950.0,0.036]
[1750212025744,0.45308631,104960.0,104950.0,0.036]
[1750212026169,0.01152662,104960.0,104950.0,0.036]
[1750212026382,0.4435596,104960.0,104950.0,0.036]
[1750212027109,0.45682319,104960.0,104950.0,0.036]
[1750212028752,0.02479021,104960.0,104950.0,0.036]
[1750212028995,0.43403298,104960.0,104950.0,0.036]
[1750212029225,0.4663499,104960.0,104950.0,0.036]
[1750212029714,0.46634981,104960.0,104950.0,0.036]
[1750212032481,0.4530864,104960.0,104950.0,0.036]
[1750212033576,0.47589058,104960.0,104950.0,0.036]
[1750212033778,0.46636378,104960.0,104950.0,0.036]
[1750212034246,0.49181639,104960.0,104950.0,0.036]
[1750212034523,0.50134319,104960.0,104950.0,0.036]
[1750212034731,0.49181639,104960.0,104950.0,0.036]
[1750212034945,0.05978341,104960.0,104950.0,0.036]
[1750212035167,0.25299572,104960.0,104950.0,0.036]
[1750212035383,0.46901221,104960.0,104950.0,0.036]
[1750212035590,0.49181639,104960.0,104950.0,0.036]
[1750212036461,0.50134319,104960.0,104950.0,0.036]
[1750212037120,0.46901221,104960.0,104950.0,0.036]
[1750212037328,0.49181777,104960.0,104950.0,0.036]
[1750212037758,0.50134457,104960.0,104950.0,0.036]
[1750212037970,0.47853901,104960.0,104950.0,0.036]
[1750212038185,0.50134503,104960.0,104950.0,0.036]
[1750212039684,0.46636562,104960.0,104950.0,0.036]
[1750212039897,0.47527475,104960.0,104950.0,0.036]
[1750212040126,0.46574813,104960.0,104950.0,0.036]
[1750212041111,0.02480602,104960.0,104950.0,0.036]
[1750212041316,0.37349649,104960.0,104950.0,0.036]
[1750212041528,0.39630251,104960.0,104950.0,0.036]
[1750212042391,0.40521087,104960.0,104950.0,0.036]
[1750212042776,0.4230289,104960.0,104950.0,0.036]
[1750212043179,0.26754968,104960.0,104950.0,0.036]
[1750212043316,0.24474366,104960.0,104950.0,0.036]
[1750212044375,0.22692563,104960.0,104950.0,0.036]
[1750212045224,0.21801649,104960.0,104950.0,0.036]
[1750212045827,0.24474685,104960.0,104950.0,0.036]
[1750212046678,0.21801649,104960.0,104950.0,0.04552834]
[1750212046882,0.002,104960.0,104950.0,0.57693746]
[1750212047326,0.002,104960.0,104950.0,0.36092097]
[1750212050120,0.002,104960.0,104950.0,0.57693746]
[1750212050316,0.002,104960.0,104950.0,0.73241746]
[1750212051427,0.002,104960.0,104950.0,0.51640097]
[1750212054507,0.002,104960.0,104950.0,0.51640106]
[1750212054710,0.002,104960.0,104950.0,0.52592877]
[1750212055281,0.25387347,104970.0,104950.0,0.48992805]
[1750212055461,0.25387347,104970.0,104960.0,0.17138176]
[1750212057039,0.25787347,104970.0,104960.0,0.17138176]
[1750212057479,0.25587347,104970.0,104960.0,0.17138176]
[1750212057900,0.25787347,104970.0,104960.0,0.17138176]
[1750212058825,0.3635484,104970.0,104960.0,0.17138176]
[1750212059035,0.59861685,104970.0,104950.0,0.07534]
[1750212059241,0.43203298,104960.0,104950.0,0.05794]
[1750212059450,0.43203298,104960.0,104950.0,0.04024]
[1750212059651,0.43203298,104960.0,104950.0,0.05794]
[1750212060114,0.43203298,104960.0,104950.0,0.08486825]
[1750212060307,0.43203298,104960.0,104950.0,0.07534]
[1750212061208,0.49073927,104960.0,104950.0,0.05794]
[1750212061507,0.42669496,104960.0,104950.0,0.05794]
[1750212062002,0.42669496,104960.0,104950.0,0.0177]
[1750212065288,0.42669496,104960.0,104950.0,0.0364]
[1750212065800,0.21701649,104960.0,104950.0,0.0364]
[1750212066306,0.23232596,104960.0,104950.0,0.0177]
[1750212066800,0.21701649,104960.0,104950.0,0.0177]
[1750212067552,0.21701649,104960.0,104950.0,0.0579]
[1750212067832,0.43303298,104960.0,104950.0,0.0402]
[1750212068364,0.43303298,104960.0,104950.0,0.0592]
[1750212069171,0.43303298,104960.0,104950.0,0.019]
[1750212069697,0.43303298,104960.0,104940.0,0.29697152]
[1750212069969,0.21601649,104950.0,104940.0,0.40274208]
[1750212071081,0.28111351,104960.0,104940.0,0.39321328]
[1750212071124,0.46061665,104950.0,104940.0,0.0193]
[1750212071126,0.00952861,104940.0,104920.0,0.0783]
[1750212071347,0.22554583,104930.0,104920.0,0.0593]
[1750212071562,0.27110652,104930.0,104920.0,0.0593]
[1750212071783,0.27110652,104930.0,104920.0,0.0191]
[1750212072016,0.28063595,104930.0,104920.0,0.0191]
[1750212072230,0.29016556,104930.0,104910.0,0.0385]
[1750212072450,0.21601649,104920.0,104910.0,0.17494176]
[1750212072667,0.21601649,104920.0,104910.0,0.17503215]
[1750212072884,0.02996953,104920.0,104910.0,0.17503215]
[1750212073120,0.29032416,104930.0,104910.0,0.17503215]
[1750212073342,0.29032416,104930.0,104910.0,0.18456403]
[1750212073559,0.29032416,104930.0,104910.0,0.18456412]
[1750212073776,0.29032416,104930.0,104910.0,0.19456412]
[1750212073988,0.29985386,104930.0,104910.0,0.18503215]
[1750212074207,0.27126512,104930.0,104910.0,0.38473523]
[1750212074451,0.29032416,104930.0,104910.0,0.17503215]
[1750212074668,0.21617509,104920.0,104910.0,0.18203215]
[1750212074882,0.06461946,104930.0,104910.0,0.19156412]
[1750212075090,0.21617509,104920.0,104910.0,0.19156412]
[1750212075303,0.21617509,104920.0,104910.0,0.18203215]
[1750212075512,0.21617509,104920.0,104910.0,0.19156412]
[1750212075729,0.21617509,104920.0,104910.0,0.14836412]
[1750212075918,0.21617509,104920.0,104910.0,0.18856412]
[1750212076144,0.24375186,104920.0,104910.0,0.18303215]
[1750212076349,0.24375186,104920.0,104910.0,0.17903215]
[1750212076560,0.24375186,104920.0,104910.0,0.18856412]
[1750212076766,0.21617509,104920.0,104910.0,0.204096]
[1750212077216,0.21617509,104920.0,104910.0,0.21362779]
[1750212077437,0.29032416,104930.0,104910.0,0.204096]
[1750212077653,0.29032416,104930.0,104910.0,0.18503215]
[1750212077838,0.29032416,104930.0,104910.0,0.19456412]
[1750212078048,0.22570452,104930.0,104910.0,0.39473544]
[1750212078338,0.22570452,104930.0,104920.0,0.0181]
[1750212078568,0.21617509,104930.0,104920.0,0.0377]
[1750212079243,0.75925917,104940.0,104920.0,0.0377]
[1750212079448,4.831059,104930.0,104920.0,0.0377]
[1750212079892,4.831059,104930.0,104920.0,0.0407]
[1750212080812,4.831059,104930.0,104920.0,0.0447]
[1750212081017,0.21617509,104930.0,104920.0,0.0447]
[1750212083714,0.3071429,104930.0,104920.0,0.0251]
[1750212083929,0.29761347,104930.0,104920.0,0.0251]
[1750212084146,0.21617509,104930.0,104920.0,0.0251]
[1750212084369,0.22570452,104930.0,104920.0,0.0251]
[1750212084804,0.21617509,104930.0,104920.0,0.0251]
[1750212087029,0.21617509,104930.0,104920.0,0.0431]
[1750212088208,4.831059,104930.0,104920.0,0.0431]
[1750212093245,0.21617509,104930.0,104920.0,0.0431]
[1750212093527,4.831059,104930.0,104920.0,0.0431]
[1750212093730,0.21617509,104930.0,104920.0,0.0431]
[1750212097270,0.22570443,104930.0,104920.0,0.0431]
[1750212097899,0.21617509,104930.0,104920.0,0.0431]
[1750212103035,0.22567584,104930.0,104920.0,0.0431]
[1750212103235,0.2161465,104930.0,104920.0,0.0431]
[1750212106832,0.58474744,104940.0,104920.0,0.0431]
[1750212107037,0.2161465,104930.0,104920.0,0.0431]
[1750212107653,0.2161465,104930.0,104920.0,0.0391]
[1750212107857,0.2161465,104930.0,104920.0,0.0401]
[1750212108369,0.2161465,104930.0,104920.0,0.0371]
[1750212108535,0.2161465,104930.0,104920.0,0.0381]
[1750212109200,5.0472055,104930.0,104920.0,0.0371]
[1750212109512,0.02268391,104930.0,104920.0,0.23072142]
[1750212109716,0.77043099,104940.0,104930.0,0.035]
[1750212109935,0.02268391,104940.0,104930.0,0.5009698]
[1750212110133,0.09509849,104960.0,104940.0,0.035]
[1750212110134,5.0472055,104950.0,104940.0,0.035]
[1750212110329,0.2389059,104950.0,104940.0,0.035]
[1750212110554,0.22567412,104950.0,104940.0,0.035]
[1750212110963,0.21606062,104950.0,104940.0,0.035]
[1750212113185,0.21706062,104950.0,104940.0,0.035]
[1750212113575,0.001,104950.0,104940.0,0.035]
[1750212113777,0.21706062,104950.0,104940.0,0.035]
[1750212115006,0.22658814,104950.0,104940.0,0.035]
[1750212115219,0.21706062,104950.0,104940.0,0.035]
[1750212117174,0.21706062,104950.0,104940.0,0.03228]
[1750212120550,0.21706062,104950.0,104940.0,0.05133841]
[1750212120905,0.001,104950.0,104940.0,0.06086748]
[1750212121315,0.001,104950.0,104940.0,0.04180925]
[1750212121579,0.001,104950.0,104940.0,0.35722276]
[1750212121789,0.001,104950.0,104940.0,0.38638592]
[1750212122010,0.001,104950.0,104940.0,0.16868176]
[1750212122192,0.21706062,104950.0,104940.0,0.07244]
[1750212123131,0.21706062,104950.0,104930.0,0.0337]
[1750212123132,0.42668921,104950.0,104930.0,0.0337]
[1750212123336,0.42668921,104950.0,104930.0,0.04016]
[1750212123337,0.45117837,104940.0,104930.0,0.04016]
[1750212123540,0.56101392,104940.0,104920.0,0.07386]
[1750212123748,0.56101392,104940.0,104920.0,0.17010176]
[1750212123749,0.21606062,104930.0,104920.0,0.17010176]
[1750212124662,0.21606062,104930.0,104920.0,0.17963283]
[1750212124882,0.21606062,104930.0,104920.0,0.17010176]
[1750212125365,0.21606062,104930.0,104920.0,0.17310176]
[1750212126431,0.21606062,104930.0,104920.0,0.15610176]
[1750212126649,0.21606062,104930.0,104920.0,0.11994176]
[1750212126870,0.21606062,104930.0,104920.0,0.16010176]
[1750212127755,0.21606062,104930.0,104920.0,0.17750176]
[1750212128899,0.28190734,104930.0,104920.0,0.06386]
[1750212129114,0.22558996,104930.0,104920.0,0.06386]
[1750212129327,0.23511948,104930.0,104920.0,0.06386]
[1750212129543,0.23511939,104930.0,104920.0,0.06386]
[1750212130409,0.244649,104930.0,104920.0,0.06386]
[1750212130625,0.32002504,104930.0,104920.0,0.06386]
[1750212131054,0.32002504,104930.0,104920.0,0.04716]
[1750212131942,0.32955483,104930.0,104920.0,0.04716]
[1750212132200,0.32002504,104930.0,104920.0,0.04716]
[1750212132851,0.32955483,104930.0,104920.0,0.04716]
[1750212133770,0.32955483,104930.0,104920.0,0.007]
[1750212134212,0.32002504,104930.0,104920.0,0.007]
[1750212134645,0.32955483,104930.0,104920.0,0.007]
[1750212134860,0.32002504,104930.0,104920.0,0.007]
[1750212135078,0.32002504,104930.0,104920.0,0.0246]
[1750212135684,0.32955483,104930.0,104920.0,0.0246]
[1750212135902,0.32955483,104930.0,104920.0,0.007]
[1750212138059,0.33908481,104930.0,104920.0,0.007]
[1750212138752,5.52251868,104930.0,104920.0,0.007]
[1750212138980,5.54520991,104930.0,104920.0,0.007]
[1750212139732,5.88520991,104930.0,104920.0,0.007]
[1750212139951,5.90293473,104930.0,104920.0,0.003]
[1750212140176,5.90393483,104930.0,104920.0,0.003]
[1750212140412,5.05027207,104920.0,104910.0,9.039e-05]
[1750212140653,0.08614586,104920.0,104910.0,9.039e-05]
[1750212140882,0.92479127,104930.0,104910.0,0.01739039]
[1750212141101,0.38095087,104920.0,104910.0,0.03479039]
[1750212141319,0.3904813,104920.0,104910.0,0.03479039]
[1750212141765,0.40001182,104920.0,104910.0,0.03479039]
[1750212142202,0.17442068,104920.0,104910.0,0.03479039]
[1750212142386,0.38095087,104920.0,104910.0,0.03479039]
[1750212142624,0.3904813,104920.0,104910.0,0.03479039]
[1750212143104,0.2351213,104920.0,104910.0,0.03479039]
[1750212143430,0.22559087,104920.0,104910.0,0.03479039]
[1750212143630,0.2351213,104920.0,104910.0,0.03479039]
[1750212144604,0.5751213,104920.0,104910.0,0.03479039]
[1750212145424,0.58465191,104920.0,104910.0,0.03479039]
[1750212146351,0.5751213,104920.0,104910.0,0.03479039]
[1750212146959,0.58465191,104920.0,104910.0,0.03479039]
[1750212147155,0.5751213,104920.0,104910.0,0.03479039]
[1750212148175,0.584652,104920.0,104910.0,0.03479039]
[1750212148724,0.58465191,104920.0,104910.0,0.03479039]
[1750212149311,0.5751213,104920.0,104910.0,0.03479039]
[1750212149500,0.58465182,104920.0,104910.0,0.03479039]
[1750212153305,0.59418243,104920.0,104910.0,0.03479039]
[1750212155021,0.69033165,104920.0,104910.0,0.03479039]
[1750212155870,0.58465182,104920.0,104910.0,0.03479039]
[1750212157351,0.5751213,104920.0,104910.0,0.03479039]
[1750212157568,0.34953025,104920.0,104910.0,0.03479039]
[1750212157772,0.5751213,104920.0,104910.0,0.03479039]
[1750212159675,0.58465182,104920.0,104910.0,0.03479039]
[1750212160505,0.71306324,104920.0,104910.0,0.03479039]
[1750212162859,0.71306387,104920.0,104910.0,0.01739039]
[1750212163894,0.70353299,104920.0,104910.0,0.01739039]
[1750212164446,0.70353299,104920.0,104910.0,9.039e-05]
[1750212164447,0.71306397,104920.0,104910.0,9.039e-05]
[1750212164649,0.71306387,104920.0,104910.0,9.039e-05]
[1750212165308,0.73036387,104920.0,104910.0,9.039e-05]
[1750212165508,0.73989485,104920.0,104910.0,9.039e-05]
[1750212165737,0.72259485,104920.0,104910.0,9.039e-05]
[1750212166146,0.71306442,104920.0,104910.0,9.039e-05]
[1750212166908,0.68306442,104920.0,104910.0,9.039e-05]
[1750212167501,0.5869152,104920.0,104910.0,9.039e-05]
[1750212167708,0.57738422,104920.0,104910.0,0.01619039]
[1750212168045,0.58691529,104920.0,104910.0,9.039e-05]
[1750212168244,0.57738422,104920.0,104910.0,9.039e-05]
[1750212169319,0.67353344,104920.0,104910.0,9.039e-05]
[1750212170679,0.45747282,104920.0,104910.0,9.039e-05]
[1750212170904,0.45747282,104920.0,104910.0,0.01649039]
[1750212170905,0.56785334,104920.0,104910.0,0.01649039]
[1750212172211,0.57738413,104920.0,104910.0,0.01649039]
[1750212172493,0.73270359,104920.0,104910.0,0.03319039]
[1750212173031,0.4880515,104920.0,104910.0,0.03319039]
[1750212173291,0.71364255,104920.0,104910.0,0.03319039]
[1750212175293,0.71364246,104920.0,104910.0,0.03319039]
[1750212175538,0.72317298,104920.0,104910.0,0.03319039]
[1750212176054,0.71364246,104920.0,104910.0,0.03319039]
[1750212177458,0.3327315,104920.0,104910.0,0.06053994]
[1750212177596,0.31,104920.0,104910.0,0.23336177]
[1750212177849,0.31,104920.0,104910.0,0.24289347]
[1750212178296,0.31,104920.0,104910.0,0.23336177]
[1750212179575,0.31,104920.0,104910.0,0.23436186]
[1750212179786,0.31,104920.0,104910.0,0.24389365]
[1750212180036,0.31,104920.0,104910.0,0.24589365]
[1750212180493,0.31,104920.0,104910.0,0.23636186]
[1750212182379,0.31,104920.0,104910.0,0.03619039]
[1750212182581,0.59894386,104920.0,104910.0,0.03619039]
[1750212183029,0.52606062,104920.0,104910.0,0.03619039]
[1750212183184,0.52606062,104920.0,104910.0,0.04572236]
[1750212183579,0.31,104920.0,104910.0,0.25542562]
[1750212183877,0.08121287,104950.0,104920.0,0.22362142]
[1750212184081,0.22558905,104940.0,104930.0,0.033]
[1750212184280,0.40881252,104940.0,104930.0,0.033]
[1750212184407,0.39928372,104940.0,104930.0,0.033]
[1750212184610,0.38975511,104940.0,104930.0,0.033]
[1750212184940,0.37134062,104940.0,104930.0,0.033]
[1750212185364,0.20302316,104940.0,104930.0,0.033]
[1750212186263,0.21255168,104940.0,104930.0,0.033]
[1750212186482,0.21355168,104940.0,104930.0,0.033]
[1750212186894,0.22308039,104940.0,104930.0,0.033]
[1750212187098,0.30130366,104940.0,104930.0,0.033]
[1750212187297,0.29177495,104940.0,104930.0,0.033]